bitfinex-derivatives/quotes_ETHF0:USTF0_20240930
["timestamp","ask_amount","ask_price","bid_price","bid_amount"]
[1727656751860,0.4649,2632.0,2631.8,3.51169]
[1727656752353,3.2078,2632.4,2631.9,3.7992]
[1727656752557,0.4449,2632.6,2631.8,3.2078]
[1727656752755,0.4449,2632.6,2632.2,0.30384]
[1727656753054,0.4449,2632.6,2632.1,3.2078]
[1727656753455,0.4449,2632.6,2632.2,0.30384]
[1727656753661,0.4449,2632.6,2632.3,0.30383]
[1727656753957,0.4449,2632.6,2632.2,0.30384]
[1727656754160,0.4449,2632.6,2632.1,3.2078]
[1727656754460,0.30384,2632.3,2632.1,3.2078]
[1727656754752,0.4449,2632.6,2631.8,0.30389]
[1727656754753,3.2078,2632.4,2631.8,0.30389]
[1727656754956,3.51163,2632.4,2631.7,3.6405]
[1727656755160,3.2078,2632.4,2631.8,0.30389]
[1727656755362,3.51163,2632.4,2631.8,0.30388]
[1727656755556,0.4629,2632.5,2631.7,3.6405]
[1727656755752,0.30384,2632.3,2631.7,3.5117]
[1727656756147,5.17476876,2632.4,2631.7,3.5117]
[1727656756346,0.30384,2632.3,2631.7,3.5117]
[1727656756556,5.17476876,2632.4,2631.7,3.2078]
[1727656756756,0.30386,2632.1,2631.7,3.2078]
[1727656757060,0.912,2632.0,2631.7,3.2078]
[1727656758458,0.4387,2632.0,2631.8,0.30389]
[1727656760651,0.4387,2632.0,2631.7,3.2078]
[1727656760855,0.74257,2632.0,2631.5,0.30392]
[1727656761059,0.74258,2632.0,2631.4,3.51173]
[1727656761360,0.4647,2631.9,2631.4,3.51173]
[1727656761752,0.4647,2631.9,2631.4,3.51174]
[1727656762552,0.4647,2631.9,2631.5,0.30392]
[1727656763153,0.4387,2632.0,2631.7,0.3039]
[1727656763358,0.4387,2632.0,2631.4,3.2078]
[1727656763562,0.4387,2632.0,2631.6,0.30391]
[1727656763756,0.4387,2632.0,2631.4,3.2078]
[1727656763956,0.4387,2632.0,2631.8,0.30389]
[1727656764750,0.4387,2632.0,2631.9,0.30388]
[1727656765355,3.6543,2632.4,2631.9,0.30388]
[1727656765550,0.9136,2632.4,2631.7,3.2078]
[1727656765750,0.9136,2632.4,2632.1,0.30385]
[1727656766055,0.9136,2632.4,2632.0,3.2078]
[1727656766254,0.9136,2632.4,2632.0,3.51166]
[1727656766863,0.9136,2632.4,2632.0,3.2078]
[1727656767161,1.21742,2632.4,2632.0,3.51167]
[1727656767555,1.21742,2632.4,2632.0,3.2078]
[1727656767956,4.42522,2632.4,2632.0,3.51167]
[1727656768263,4.1214,2632.4,2632.0,3.51166]
[1727656769467,4.42523,2632.4,2632.0,3.51167]
[1727656770364,4.42523,2632.4,2632.0,0.30387]
[1727656770758,4.1214,2632.4,2631.7,3.2078]
[1727656771166,4.42523,2632.4,2631.7,3.2078]
[1727656771364,4.42523,2632.4,2631.7,4.20267024]
[1727656771673,4.42523,2632.4,2631.9,0.30388]
[1727656772167,4.1214,2632.4,2631.7,4.20267024]
[1727656772371,4.1214,2632.4,2632.0,0.30387]
[1727656772975,4.42523,2632.4,2632.0,0.30387]
[1727656773268,4.1214,2632.4,2632.0,0.30387]
[1727656773966,0.4671,2632.4,2632.3,0.30384]
[1727656774170,1.94555929,2632.6,2632.5,0.30381]
[1727656774465,1.94555929,2632.6,2632.5,1.74381]
[1727656774668,1.94555929,2632.6,2632.5,11.54221]
[1727656774855,1.94555929,2632.6,2632.5,5.54221]
[1727656775061,1.94555929,2632.6,2632.5,11.54221]
[1727656775671,1.94555929,2632.6,2632.5,10.10221]
[1727656775865,1.94555929,2632.6,2632.5,11.54221]
[1727656776261,2.43194911,2632.8,2632.7,0.30379]
[1727656776463,0.4425,2633.3,2633.2,0.30373]
[1727656777160,0.4425,2633.3,2633.1,3.51154]
[1727656777768,0.4425,2633.3,2633.1,3.2078]
[1727656777974,0.4425,2633.3,2633.1,0.30374]
[1727656778270,0.4425,2633.3,2633.1,3.51154]
[1727656779664,3.6642,2633.7,2633.2,6.7176]
[1727656779866,0.9158,2633.7,2633.5,2.92]
[1727656780165,0.9158,2633.7,2633.4,3.2078]
[1727656780572,0.9158,2633.7,2633.4,3.5115]
[1727656781165,0.4594,2633.7,2633.4,3.2078]
[1727656781365,2.43194911,2633.8,2633.6,2.92]
[1727656781575,2.43194911,2634.3,2633.7,7.0046]
[1727656781875,0.9265,2634.4,2634.1,3.51143]
[1727656782069,0.9265,2634.4,2634.1,3.2078]
[1727656782269,0.4594,2634.4,2634.1,3.2078]
[1727656782569,3.2078,2634.8,2634.3,2.92]
[1727656782775,3.6712,2634.8,2634.3,2.92]
[1727656783179,3.6712,2634.8,2634.1,3.97542]
[1727656783180,0.30356,2634.7,2634.1,5.0608]
[1727656783471,3.97475,2634.8,2634.1,5.0608]
[1727656784170,3.6712,2634.8,2634.1,5.0608]
[1727656784372,3.97475,2634.8,2634.1,5.0608]
[1727656784570,0.76695,2634.8,2634.1,5.0608]
[1727656784777,3.97475,2634.8,2634.1,5.0608]
[1727656785268,0.76695,2634.8,2634.1,5.0608]
[1727656785470,3.97475,2634.8,2634.1,5.0608]
[1727656785984,3.6712,2634.8,2634.1,3.2078]
[1727656786275,3.6712,2634.8,2633.5,4.3208]
[1727656786276,3.2078,2634.5,2633.9,1.389]
[1727656786475,3.97475,2634.8,2634.0,6.1278]
[1727656786676,3.6712,2634.8,2634.0,6.1278]
[1727656786975,0.30356,2634.7,2634.0,6.1278]
[1727656788077,3.6712,2634.8,2634.4,2.92]
[1727656788266,3.2078,2635.2,2634.7,2.92]
[1727656788671,0.8758,2635.3,2635.0,2.92]
[1727656789373,0.8758,2635.3,2635.0,3.22352]
[1727656789579,0.8758,2635.3,2635.0,2.92]
[1727656790365,0.8758,2635.3,2635.0,3.22352]
[1727656790575,0.4406,2635.3,2635.0,3.22352]
[1727656790781,0.4406,2635.3,2635.1,3.7952]
[1727656790971,0.4406,2635.3,2635.0,2.92]
[1727656791276,0.4406,2635.3,2634.9,1.389]
[1727656791481,0.4406,2635.3,2634.9,1.69253]
[1727656791873,0.4406,2635.3,2634.9,4.90033]
[1727656792070,0.4406,2635.3,2635.0,7.11405318]
[1727656792273,3.2078,2635.6,2635.3,0.30348]
[1727656792582,0.30342,2636.0,2635.4,2.92]
[1727656792583,3.2078,2636.0,2635.4,2.92]
[1727656792785,0.464,2636.5,2635.9,2.92]
[1727656792968,3.2078,2636.4,2635.9,2.92]
[1727656793375,3.2078,2636.4,2635.9,3.22341]
[1727656793673,0.464,2636.5,2636.0,3.2078]
[1727656793879,0.464,2636.5,2636.0,3.51121]
[1727656795573,0.464,2636.5,2636.0,3.2078]
[1727656795779,0.75804,2637.8,2636.3,6.1278]
[1727656795780,3.3978,2637.5,2636.3,6.1278]
[1727656796079,0.9174,2637.3,2636.7,2.92]
[1727656796474,3.51108,2637.2,2636.7,2.92]
[1727656796675,3.51108,2637.2,2636.7,3.22333]
[1727656796676,3.2078,2637.2,2636.7,3.22333]
[1727656796874,3.2078,2637.2,2636.7,2.92]
[1727656797073,3.51107,2637.2,2636.7,2.92]
[1727656797288,3.2078,2637.2,2636.7,2.92]
[1727656797481,0.9174,2637.3,2636.9,0.3033]
[1727656797792,0.9174,2637.3,2636.8,0.30332]
[1727656798083,0.9174,2637.3,2637.0,0.30329]
[1727656798382,0.9174,2637.3,2636.8,0.30331]
[1727656798582,0.9174,2637.3,2636.9,0.3033]
[1727656799873,0.9174,2637.3,2636.7,2.92]
[1727656800079,0.9174,2637.3,2637.0,0.30329]
[1727656800280,0.9174,2637.3,2636.9,0.3033]
[1727656800483,0.9174,2637.3,2636.7,2.92]
[1727656800677,0.9174,2637.3,2636.8,3.2078]
[1727656800875,0.4573,2637.3,2636.8,3.2078]
[1727656801079,3.2078,2637.8,2637.1,6.1278]
[1727656801284,0.4487,2637.7,2637.6,0.30323]
[1727656801782,0.4487,2637.7,2637.6,4.09443]
[1727656801984,0.44,2638.0,2637.6,3.7912]
[1727656802190,0.4487,2638.1,2637.8,2.92]
[1727656802489,0.4487,2638.1,2637.1,0.8622]
[1727656802490,0.4487,2638.1,2637.1,3.2078]
[1727656802678,0.4487,2638.1,2637.1,6.1278]
[1727656802679,3.2078,2637.7,2637.1,6.1278]
[1727656802878,3.2078,2637.7,2637.4,2.92]
[1727656803075,3.51102,2637.7,2637.4,2.92]
[1727656803275,0.9307,2637.6,2637.4,2.92]
[1727656803480,0.9307,2637.6,2637.1,6.1278]
[1727656803881,0.4622,2637.5,2637.1,6.43108]
[1727656804087,0.4622,2637.5,2637.2,0.30327]
[1727656804290,3.2078,2637.7,2637.1,6.43108]
[1727656804480,0.75788,2638.3,2637.5,0.30324]
[1727656804481,0.9307,2638.2,2637.5,0.30324]
[1727656804787,0.75774,2638.8,2637.5,0.30324]
[1727656804788,0.19,2639.1,2638.4,0.30313]
[1727656805083,3.2078,2640.0,2638.2,6.1278]
[1727656805084,0.4622,2639.0,2638.2,6.1278]
[1727656805386,0.9259,2639.0,2638.3,3.2078]
[1727656805680,1.22897,2639.0,2638.3,3.2078]
[1727656805889,1.22897,2639.0,2638.3,3.51094]
[1727656805890,0.9259,2639.0,2638.3,3.51094]
[1727656806282,0.9259,2639.0,2638.2,2.92]
[1727656806283,1.22897,2639.0,2638.6,3.2078]
[1727656806489,0.9259,2639.0,2638.6,3.2078]
[1727656806693,3.7896,2638.9,2638.6,3.2078]
[1727656807491,3.7896,2638.9,2638.2,6.1278]
[1727656807690,1.22897,2639.0,2638.2,6.43095]
[1727656807994,0.30308,2638.9,2638.2,6.43095]
[1727656808281,0.9259,2639.0,2638.2,6.1278]
[1727656808485,0.30311,2638.6,2638.2,6.1278]
[1727656808692,0.4704,2638.5,2638.2,3.2078]
[1727656809194,0.4704,2638.5,2638.3,0.30314]
[1727656809195,0.4587,2638.4,2638.3,0.30314]
[1727656809678,0.4637,2639.0,2638.3,9.7904]
[1727656809883,0.4584,2638.9,2638.8,3.22309]
[1727656810178,0.4704,2639.3,2639.1,0.30305]
[1727656810379,0.4704,2639.3,2638.8,2.92]
[1727656810380,0.4704,2639.3,2638.9,3.2078]
[1727656810577,0.9133,2639.5,2639.1,2.92]
[1727656810784,0.9133,2639.5,2639.3,0.30302]
[1727656810985,0.9133,2639.5,2639.3,0.30303]
[1727656811189,0.9133,2639.5,2639.2,3.2078]
[1727656811489,0.9133,2639.5,2638.8,2.92]
[1727656811490,0.30304,2639.3,2638.8,2.92]
[1727656811697,3.6577,2639.2,2638.8,2.92]
[1727656811988,0.4499,2639.2,2638.8,2.92]
[1727656812989,0.75295,2639.2,2638.8,2.92]
[1727656813183,3.6577,2639.2,2638.8,2.92]
[1727656813493,3.96074,2639.2,2638.8,2.92]
[1727656813990,3.6577,2639.2,2638.8,2.92]
[1727656814589,3.6577,2639.2,2638.6,3.2078]
[1727656814590,0.30306,2639.1,2638.6,3.2078]
[1727656814884,3.6577,2639.2,2638.6,3.2078]
[1727656815085,0.4499,2639.2,2638.6,3.2078]
[1727656815276,0.4499,2639.2,2638.7,0.30309]
[1727656815680,0.4499,2639.2,2638.8,2.92]
[1727656816790,0.4499,2639.2,2638.8,3.22308]
[1727656816987,0.4499,2639.2,2638.9,0.30307]
[1727656817689,0.4499,2639.2,2638.8,2.92]
[1727656817889,0.4499,2639.2,2638.9,3.2078]
[1727656818291,0.4499,2639.2,2639.0,0.30306]
[1727656819091,0.4499,2639.2,2638.9,3.2078]
[1727656819290,0.4499,2639.2,2638.9,3.51087]
[1727656819697,0.4499,2639.2,2639.0,0.30306]
[1727656819897,0.4499,2639.2,2638.9,3.2078]
[1727656820297,0.9133,2639.5,2639.1,2.92]
[1727656820489,0.9133,2639.5,2639.2,3.2078]
[1727656821594,0.4698,2639.9,2639.4,2.92]
[1727656821892,0.9402,2639.9,2639.6,0.30299]
[1727656822093,1.24316,2639.9,2639.5,3.2078]
[1727656822301,0.9402,2639.9,2639.5,3.5108]
[1727656822488,0.9402,2639.9,2639.8,6.43077]
[1727656822489,0.4704,2639.9,2639.8,6.43077]
[1727656822686,0.4342,2640.1,2639.8,6.1278]
[1727656823193,0.30293,2640.2,2639.8,6.1278]
[1727656823397,4.1124,2640.3,2639.8,2.92]
[1727656823597,0.30293,2640.2,2639.8,2.92]
[1727656824393,4.41532,2640.3,2639.8,2.92]
[1727656824697,4.41532,2640.3,2639.2,3.2078]
[1727656824698,3.2078,2639.9,2639.2,3.2078]
[1727656824888,0.4664,2639.8,2639.2,3.2078]
[1727656825088,0.75829,2639.7,2639.2,3.2078]
[1727656825292,0.303,2639.6,2639.2,3.2078]
[1727656825490,0.9145,2639.7,2639.2,3.2078]
[1727656825685,0.9145,2639.7,2639.5,3.2078]
[1727656825890,0.9145,2639.7,2639.3,3.22302]
[1727656825891,0.9145,2639.7,2639.4,0.30302]
[1727656826196,0.9145,2639.7,2639.5,3.2078]
[1727656826790,0.9145,2639.7,2639.3,2.92]
[1727656826791,0.9145,2639.7,2639.3,3.22302]
[1727656827097,0.9145,2639.7,2639.4,0.30302]
[1727656827488,0.9145,2639.7,2639.4,3.51082]
[1727656827886,0.9145,2639.7,2639.5,0.303]
[1727656828094,0.3029,2640.5,2640.0,0.30295]
[1727656828290,3.3978,2640.8,2640.0,2.92]
[1727656828291,0.4297,2640.6,2640.0,2.92]
[1727656828490,0.4297,2640.6,2640.3,2.92]
[1727656829099,0.4297,2640.6,2640.4,0.3029]
[1727656829298,0.4297,2640.6,2640.3,3.2078]
[1727656829299,3.7872,2640.5,2640.3,3.2078]
[1727656829495,3.7872,2640.5,2640.1,3.2078]
[1727656829684,0.73259,2640.6,2640.1,3.51073]
[1727656829885,0.4297,2640.6,2640.0,2.92]
[1727656830090,3.2078,2641.0,2640.4,2.92]
[1727656830298,3.2078,2641.0,2640.6,0.30288]
[1727656830299,0.4297,2640.7,2640.6,0.30288]
[1727656830492,4.2169,2640.7,2640.5,0.30289]
[1727656830696,4.2169,2640.7,2640.4,3.2229]
[1727656830697,0.4297,2640.7,2640.4,3.2229]
[1727656831093,0.4297,2640.7,2640.4,2.92]
[1727656831395,0.30289,2640.6,2640.1,6.1278]
[1727656831597,0.4297,2640.7,2640.4,0.30289]
[1727656831787,0.4297,2640.7,2640.4,6.43069]
[1727656831993,3.7872,2640.6,2640.4,6.43069]
[1727656832300,0.4297,2640.7,2640.4,6.4307]
[1727656832497,0.73257,2640.7,2640.4,6.1278]
[1727656832692,3.7872,2640.6,2640.4,3.2078]
[1727656832892,4.2169,2640.7,2640.4,3.2078]
[1727656833194,0.4297,2640.7,2640.4,3.5107]
[1727656833394,0.4297,2640.7,2640.4,3.2078]
[1727656833792,0.4297,2640.7,2640.4,6.1278]
[1727656834000,0.4297,2640.7,2640.6,0.30288]
[1727656834198,0.4297,2640.7,2640.4,6.1278]
[1727656834397,0.4297,2640.7,2640.4,6.4307]
[1727656835096,0.4297,2640.7,2640.4,6.1278]
[1727656835898,0.73257,2640.7,2640.4,6.1278]
[1727656836098,0.4297,2640.7,2640.4,6.1278]
[1727656836300,0.4297,2640.7,2640.4,6.4307]
[1727656836499,0.4297,2640.7,2640.4,6.1278]
[1727656836699,0.4297,2640.7,2640.4,3.2078]
[1727656836700,3.7872,2640.6,2640.4,3.2078]
[1727656836894,3.7872,2640.6,2639.9,0.30296]
[1727656836895,3.6596,2640.5,2639.9,0.30296]
[1727656837094,3.9625,2640.5,2640.1,0.30293]
[1727656837296,3.9625,2640.5,2640.1,6.1278]
[1727656837297,0.4518,2640.5,2640.1,6.1278]
[1727656837498,0.4297,2640.7,2640.4,0.3029]
[1727656837704,0.4297,2640.7,2640.1,6.1278]
[1727656837705,0.4297,2640.7,2640.3,0.30291]
[1727656837998,0.4297,2640.7,2640.1,6.1278]
[1727656838303,0.4297,2640.7,2640.4,3.5107]
[1727656838606,0.4297,2640.7,2640.4,3.2078]
[1727656838790,0.3029,2640.5,2640.1,6.1278]
[1727656838991,0.30292,2640.3,2639.9,0.30295]
[1727656839195,0.4341,2640.2,2639.8,3.2078]
[1727656839605,0.4341,2640.2,2639.4,2.92]
[1727656839606,0.30296,2640.0,2639.4,2.92]
[1727656839904,0.4328,2640.1,2640.0,0.30295]
[1727656840501,0.4328,2640.1,2639.9,0.30296]
[1727656840702,0.4328,2640.1,2640.0,0.30295]
[1727656840912,0.4643,2640.4,2639.8,3.2078]
[1727656841098,0.4643,2640.4,2639.7,2.92]
[1727656841099,0.4662,2640.5,2640.1,3.2078]
[1727656841401,0.76909,2640.5,2640.1,3.2078]
[1727656841599,0.4662,2640.5,2640.1,3.2078]
[1727656841801,0.4662,2640.5,2640.1,3.51073]
[1727656842308,0.4662,2640.5,2640.1,3.2078]
[1727656842711,0.4662,2640.5,2640.3,0.30291]
[1727656843203,0.4662,2640.5,2640.1,3.51073]
[1727656843412,0.4341,2640.8,2640.4,2.92]
[1727656843708,0.4341,2640.8,2640.4,6.1278]
[1727656843709,0.73696,2640.8,2640.4,6.1278]
[1727656844008,0.73696,2640.8,2640.4,2.92]
[1727656844009,0.474,2640.7,2640.4,2.92]
[1727656844205,0.77687,2640.7,2640.4,2.92]
[1727656844398,0.474,2640.7,2640.4,2.92]
[1727656844798,0.77687,2640.7,2640.4,2.92]
[1727656845198,0.474,2640.7,2640.4,2.92]
[1727656845413,0.77687,2640.7,2640.4,2.92]
[1727656845806,4.56407,2640.7,2640.4,2.92]
[1727656846010,0.474,2640.7,2640.4,2.92]
[1727656846506,0.474,2640.7,2640.4,3.2229]
[1727656846711,0.474,2640.7,2640.4,2.92]
[1727656847307,0.474,2640.7,2640.3,3.2078]
[1727656847507,0.474,2640.7,2639.9,3.2078]
[1727656847508,0.30295,2640.0,2639.9,3.2078]
[1727656847714,0.30295,2640.0,2639.5,2.92]
[1727656847715,0.30297,2639.9,2639.5,2.92]
[1727656847903,0.8986,2639.9,2639.5,2.92]
[1727656848214,1.20157,2639.9,2639.5,2.92]
[1727656848410,0.30297,2639.8,2639.5,2.92]
[1727656848713,0.8986,2639.9,2639.5,2.92]
[1727656848913,1.20156,2639.9,2639.5,2.92]
[1727656849409,0.8986,2639.9,2639.5,2.92]
[1727656849719,1.20157,2639.9,2639.5,2.92]
[1727656850310,0.8986,2639.9,2639.5,2.92]
[1727656850712,1.20156,2639.9,2639.5,2.92]
[1727656851206,0.8986,2639.9,2639.5,2.92]
[1727656851802,0.30298,2639.8,2639.5,2.92]
[1727656852213,0.8986,2639.9,2639.2,2.92]
[1727656852214,0.30301,2639.6,2639.2,2.92]
[1727656852407,6.9958,2639.7,2639.2,2.92]
[1727656852408,0.30301,2639.5,2639.2,2.92]
[1727656852607,0.4674,2639.5,2639.2,2.92]
[1727656853008,0.4674,2639.5,2638.9,2.92]
[1727656853009,0.30304,2639.3,2638.9,2.92]
[1727656853307,0.4674,2639.5,2638.8,3.2078]
[1727656853308,0.74145,2639.2,2638.8,3.2078]
[1727656853501,0.8774,2639.2,2638.5,2.92]
[1727656853702,0.8774,2639.2,2638.3,3.2078]
[1727656853703,0.30308,2638.9,2638.3,3.2078]
[1727656853916,3.2078,2639.1,2638.3,3.2078]
[1727656853917,0.30307,2639.0,2638.3,3.51094]
[1727656854111,0.8774,2639.2,2638.6,3.2078]
[1727656854308,4.0852,2639.2,2638.3,3.2078]
[1727656854501,0.30307,2639.0,2638.4,0.30313]
[1727656854703,4.0852,2639.2,2638.4,0.30313]
[1727656854908,0.4384,2639.2,2638.8,2.92]
[1727656855109,4.172,2639.5,2639.2,0.30304]
[1727656855306,0.4673,2639.7,2639.2,0.30304]
[1727656855307,0.9098,2639.7,2639.3,0.30302]
[1727656855615,0.9098,2639.7,2639.4,0.30301]
[1727656856218,3.2078,2640.0,2639.5,2.92]
[1727656856521,0.4425,2640.3,2639.8,0.30296]
[1727656856708,0.4425,2640.3,2639.8,3.2078]
[1727656856907,0.4425,2640.3,2639.9,0.30296]
[1727656857112,0.4425,2640.3,2639.5,6.1278]
[1727656857113,4.2305,2640.3,2639.5,6.1278]
[1727656857312,0.74542,2640.3,2639.8,0.30297]
[1727656857617,0.30293,2640.2,2639.7,0.30298]
[1727656858016,0.74542,2640.3,2639.8,0.30296]
[1727656858211,0.4425,2640.3,2639.9,0.30296]
[1727656858414,0.4425,2640.3,2639.5,6.1278]
[1727656858607,0.4425,2640.3,2639.6,0.30299]
[1727656858912,0.30293,2640.2,2639.5,6.1278]
[1727656859115,0.30293,2640.2,2639.7,0.30298]
[1727656859813,0.4425,2640.3,2639.7,0.30298]
[1727656860012,0.4425,2640.3,2639.5,6.1278]
[1727656860613,0.30296,2640.0,2639.5,6.4308]
[1727656861316,0.4425,2640.3,2639.6,0.30299]
[1727656861317,0.30294,2640.1,2639.6,0.30299]
[1727656861522,0.4425,2640.3,2639.5,6.1278]
[1727656861814,3.2078,2640.1,2639.5,2.92]
[1727656862015,0.30296,2639.9,2639.5,2.92]
[1727656862210,0.30297,2639.8,2639.5,2.92]
[1727656862410,3.2078,2640.1,2639.5,2.92]
[1727656862609,0.30296,2640.0,2639.5,3.22301]
[1727656862811,0.30296,2640.0,2639.5,6.43081]
[1727656863120,3.2078,2640.1,2639.5,6.1278]
[1727656863320,3.51075,2640.1,2639.5,3.223]
[1727656863523,0.30293,2640.2,2639.7,0.30298]
[1727656863917,0.30293,2640.2,2639.8,0.30297]
[1727656864118,0.30293,2640.2,2639.7,0.30298]
[1727656865021,0.30294,2640.1,2639.7,0.30298]
[1727656865217,0.4425,2640.3,2640.0,0.30294]
[1727656865522,4.47486,2640.8,2640.4,0.3029]
[1727656865719,0.4441,2640.7,2640.4,0.3029]
[1727656866312,0.4441,2640.7,2640.5,3.2078]
[1727656866521,0.4441,2640.7,2640.5,0.30289]
[1727656866722,0.4441,2640.7,2640.6,2.92]
[1727656869024,0.74697,2640.7,2640.6,2.92]
[1727656869326,4.2313,2640.7,2640.2,2.92]
[1727656869624,0.30291,2640.4,2640.0,3.2078]
[1727656869824,0.4441,2640.7,2640.0,3.2078]
[1727656870028,0.4441,2640.7,2640.2,2.92]
[1727656870029,0.74697,2640.7,2640.2,2.92]
[1727656870217,0.74697,2640.7,2639.6,4.13]
[1727656870218,0.4441,2640.7,2640.5,2.92]
[1727656870418,4.2313,2640.7,2640.5,2.92]
[1727656870616,0.4441,2640.7,2640.5,2.92]
[1727656872319,6.14096761,2640.7,2640.3,3.2078]
[1727656872520,2.21256761,2640.5,2639.9,3.22295]
[1727656872724,2.21256761,2640.5,2639.9,2.92]
[1727656872725,1.90966761,2640.5,2639.9,2.92]
[1727656872917,2.21257761,2640.4,2639.9,2.92]
[1727656873116,2.68047761,2640.4,2639.9,2.92]
[1727656873622,2.68047761,2640.4,2639.9,3.22296]
[1727656874023,2.37756761,2640.4,2639.9,3.22296]
[1727656874325,2.37756761,2640.4,2639.9,2.92]
[1727656874326,2.21258761,2640.3,2639.9,2.92]
[1727656874521,2.35096761,2640.3,2639.9,2.92]
[1727656876215,2.65388761,2640.3,2639.9,2.92]
[1727656876425,0.30295,2640.0,2639.4,0.39322]
[1727656876724,0.4409,2639.9,2639.5,0.30301]
[1727656877119,0.4409,2639.9,2639.7,3.2078]
[1727656877824,3.2078,2640.4,2639.8,3.2078]
[1727656878028,0.30297,2639.9,2639.8,3.2078]
[1727656878223,0.30297,2639.9,2639.1,0.30305]
[1727656878224,3.2078,2640.1,2639.4,3.2078]
[1727656878522,0.30294,2640.1,2639.7,3.2078]
[1727656878727,3.788,2640.1,2639.7,3.2078]
[1727656878930,0.75726,2640.5,2639.7,3.2078]
[1727656878931,0.30295,2640.0,2639.7,3.2078]
[1727656879322,0.75727,2640.4,2639.7,3.2078]
[1727656879323,0.30296,2639.9,2639.7,3.2078]
[1727656879823,1.485,2640.6,2639.7,3.2078]
[1727656880029,0.30297,2639.8,2639.7,3.2078]
[1727656880322,3.788,2640.5,2639.2,3.51084]
[1727656880323,0.303,2639.6,2639.2,3.51084]
[1727656880922,0.73781,2639.5,2639.2,3.2078]
[1727656881324,0.4348,2639.5,2639.2,3.51084]
[1727656881532,0.30303,2639.3,2639.2,3.2078]
[1727656881724,3.7888,2639.4,2639.2,3.2078]
[1727656881923,4.2432,2639.3,2639.2,3.2078]
[1727656882424,4.2432,2639.3,2638.9,3.2078]
[1727656882725,4.2432,2639.3,2638.6,3.91408381]
[1727656882726,0.4618,2639.2,2638.6,3.2078]
[1727656883234,0.4618,2639.2,2638.6,3.51091]
[1727656883235,0.30307,2639.0,2638.6,3.51091]
[1727656883830,0.4618,2639.2,2638.6,3.2078]
[1727656884137,0.4618,2639.2,2638.9,3.2078]
[1727656884330,0.30306,2639.0,2638.9,3.2078]
[1727656884726,0.30306,2639.0,2638.4,3.2078]
[1727656884727,0.3031,2638.7,2638.4,3.2078]
[1727656884927,0.30311,2638.6,2638.4,3.2078]
[1727656885122,0.4702,2638.9,2638.4,3.2078]
[1727656885328,0.30309,2638.8,2638.4,3.2078]
[1727656885527,0.30309,2638.8,2638.4,3.51093]
[1727656885935,0.4702,2638.9,2638.4,3.2078]
[1727656886129,0.4743,2638.7,2638.4,3.51093]
[1727656887032,0.30309,2638.8,2638.4,3.51093]
[1727656887232,0.4702,2638.9,2638.4,3.51093]
[1727656887233,0.4702,2638.9,2638.4,3.2078]
[1727656887629,0.30309,2638.8,2638.4,3.51093]
[1727656888640,3.7896,2638.7,2638.4,3.2078]
[1727656888827,0.4702,2638.9,2638.4,3.2078]
[1727656889023,0.77328,2638.9,2638.5,0.30312]
[1727656889224,0.4702,2638.9,2638.4,3.2078]
[1727656889428,0.4702,2638.9,2638.8,0.30309]
[1727656889629,0.4702,2638.9,2638.4,2.92]
[1727656889630,0.4702,2638.9,2638.5,0.4382]
[1727656889830,0.4702,2638.9,2638.7,3.2078]
[1727656890241,0.77328,2638.9,2638.7,3.2078]
[1727656890444,0.30311,2638.7,2638.4,6.1278]
[1727656890738,3.2078,2638.5,2637.4,4.20188381]
[1727656890941,0.30314,2638.3,2637.5,0.30323]
[1727656891235,0.75784,2638.4,2637.4,3.2078]
[1727656891236,0.30319,2637.9,2637.4,3.2078]
[1727656891737,0.30321,2637.8,2637.2,0.8857]
[1727656891929,3.2078,2637.9,2637.5,0.30323]
[1727656892132,0.75776,2638.7,2637.2,0.8857]
[1727656892133,3.2078,2638.9,2637.7,3.2078]
[1727656892329,3.2078,2638.9,2637.6,2.92]
[1727656892330,3.2078,2638.9,2638.0,3.2078]
[1727656892827,3.2078,2638.9,2638.6,0.3031]
[1727656893036,3.2078,2638.9,2638.4,3.2078]
[1727656893229,3.2078,2638.9,2638.5,1.20642]
[1727656893435,3.2078,2638.9,2638.6,0.3031]
[1727656894030,3.51088,2638.9,2638.5,1.20642]
[1727656895332,3.2078,2638.9,2638.5,0.9033]
[1727656895529,3.2078,2638.9,2638.5,0.4475]
[1727656895838,0.3031,2638.7,2638.0,3.6601]
[1727656896050,0.30309,2638.8,2638.3,0.30314]
[1727656896255,3.2078,2638.9,2638.1,0.4507]
[1727656896435,0.30309,2638.8,2638.3,3.2078]
[1727656896639,0.30309,2638.8,2638.3,3.51094]
[1727656896839,0.3031,2638.7,2638.3,3.51094]
[1727656897138,0.3031,2638.7,2638.3,0.30314]
[1727656897339,0.30315,2638.3,2638.1,0.4507]
[1727656897546,3.67764,2639.2,2638.0,0.4523]
[1727656897547,0.75781,2638.5,2638.0,0.4523]
[1727656897739,0.30317,2638.1,2637.7,1.23771]
[1727656898144,3.51095,2638.3,2637.8,3.511]
[1727656898343,0.30317,2638.2,2637.8,3.511]
[1727656898641,3.2078,2638.3,2637.7,0.9345]
[1727656898837,0.30316,2638.2,2637.7,1.23771]
[1727656899139,3.2078,2638.3,2637.7,0.4687]